[Event "Ruzomberok Closed 2020 - 3. turnaj"]
[Site "Ruzomberok, Slovakia"]
[Date "2020.09.05"]
[Round "2.1"]
[White "Caban, Lubor"]
[Black "Konkol, Emil"]
[Result "0-1"]
[TimeControl "10m + 5s"]
[WhiteElo "1668"]
[BlackElo "1799"]

1. e4 {[%clk 00:10:08]} {[%emt 00:00:02]} e5 {[%clk 00:10:08]} {[%emt
00:00:03]} 2. Nf3 {[%clk 00:10:11]} {[%emt 00:00:03]} Nc6 {[%clk 00:10:10]}
{[%emt 00:00:02]} 3. Bb5 {[%clk 00:10:15]} {[%emt 00:00:01]} a6 {[%clk
00:10:12]} {[%emt 00:00:03]} 4. Bxc6 {[%clk 00:10:19]} dxc6 {[%clk 00:10:15]}
{[%emt 00:00:02]} 5. d4 {[%clk 00:10:22]} {[%emt 00:00:02]} Bg4 {[%clk
00:10:10]} {[%emt 00:00:09]} 6. dxe5 {[%clk 00:10:10]} {[%emt 00:00:18]} Qxd1+
{[%clk 00:10:11]} {[%emt 00:00:04]} 7. Kxd1 {[%clk 00:10:14]} {[%emt 00:00:01]}
Bxf3+ {[%clk 00:10:13]} {[%emt 00:00:03]} 8. gxf3 {[%clk 00:10:18]} O-O-O+
{[%clk 00:10:12]} {[%emt 00:00:07]} 9. Ke2 {[%clk 00:10:21]} {[%emt 00:00:02]}
Ne7 {[%clk 00:09:57]} {[%emt 00:00:20]} 10. Nc3 {[%clk 00:10:19]} {[%emt
00:00:08]} Ng6 {[%clk 00:09:58]} {[%emt 00:00:03]} 11. Bg5 {[%clk 00:10:03]}
{[%emt 00:00:22]} Rd7 {[%clk 00:09:57]} {[%emt 00:00:06]} 12. Rad1 {[%clk
00:09:41]} {[%emt 00:00:26]} Nxe5 {[%clk 00:09:59]} {[%emt 00:00:03]} 13. Bf4
{[%clk 00:09:32]} {[%emt 00:00:13]} Bd6 {[%clk 00:09:50]} {[%emt 00:00:15]} 14.
Bg3 {[%clk 00:09:25]} {[%emt 00:00:11]} h5 {[%clk 00:09:51]} {[%emt 00:00:06]}
15. f4 {[%clk 00:09:28]} {[%emt 00:00:03]} Nc4 {[%clk 00:09:32]} {[%emt
00:00:23]} 16. e5 {[%clk 00:09:31]} {[%emt 00:00:03]} Bc5 {[%clk 00:08:55]}
{[%emt 00:00:41]} 17. Rxd7 {[%clk 00:09:30]} {[%emt 00:00:06]} Kxd7 {[%clk
00:08:58]} 18. Rd1+ {[%clk 00:09:34]} {[%emt 00:00:04]} Kc8 {[%clk 00:08:59]}
{[%emt 00:00:02]} 19. Ne4 {[%clk 00:09:31]} {[%emt 00:00:08]} Ba7 {[%clk
00:08:37]} {[%emt 00:00:27]} 20. b3 {[%clk 00:09:05]} {[%emt 00:00:31]} Na3
{[%clk 00:08:31]} {[%emt 00:00:11]} 21. f5 {[%clk 00:08:50]} {[%emt 00:00:20]}
Nxc2 {[%clk 00:08:29]} {[%emt 00:00:06]} 22. f4 {[%clk 00:08:13]} {[%emt
00:00:41]} Nd4+ {[%clk 00:08:02]} {[%emt 00:00:32]} 23. Kf1 {[%clk 00:07:35]}
{[%emt 00:00:41]} Nxf5 {[%clk 00:08:04]} {[%emt 00:00:05]} 24. Bf2 {[%clk
00:07:24]} {[%emt 00:00:15]} Bxf2 {[%clk 00:07:52]} {[%emt 00:00:19]} 25. Kxf2
{[%clk 00:07:27]} {[%emt 00:00:02]} Ne7 {[%clk 00:07:34]} {[%emt 00:00:22]} 26.
Ng5 {[%clk 00:07:20]} {[%emt 00:00:12]} f6 {[%clk 00:07:26]} {[%emt 00:00:13]}
27. Nf7 {[%clk 00:07:14]} {[%emt 00:00:10]} Rf8 {[%clk 00:07:23]} {[%emt
00:00:07]} 28. e6 {[%clk 00:07:17]} {[%emt 00:00:04]} Nd5 {[%clk 00:07:04]}
{[%emt 00:00:24]} 29. f5 {[%clk 00:07:13]} {[%emt 00:00:08]} b5 {[%clk
00:06:43]} {[%emt 00:00:27]} 30. Kf3 {[%clk 00:07:17]} {[%emt 00:00:01]} Rg8
{[%clk 00:06:27]} {[%emt 00:00:21]} 31. Rd3 {[%clk 00:06:57]} {[%emt 00:00:23]}
g5 {[%clk 00:06:18]} {[%emt 00:00:16]} 32. Ke4 {[%clk 00:06:43]} {[%emt
00:00:18]} h4 {[%clk 00:05:41]} {[%emt 00:00:43]} 33. h3 {[%clk 00:06:08]}
{[%emt 00:00:39]} g4 {[%clk 00:05:33]} {[%emt 00:00:12]} 34. Nh6 {[%clk
00:05:54]} {[%emt 00:00:19]} g3 {[%clk 00:05:26]} {[%emt 00:00:13]} 35. Nxg8
{[%clk 00:05:55]} {[%emt 00:00:04]} g2 {[%clk 00:05:29]} {[%emt 00:00:01]} 36.
Rd1 {[%clk 00:05:55]} {[%emt 00:00:03]} Nc3+ {[%clk 00:05:15]} {[%emt
00:00:22]} 37. Kf3 {[%clk 00:05:53]} {[%emt 00:00:06]} Nxd1 {[%clk 00:05:14]}
{[%emt 00:00:07]} 38. Kxg2 {[%clk 00:05:56]} {[%emt 00:00:02]} Ne3+ {[%clk
00:05:13]} {[%emt 00:00:06]} 39. Kf3 {[%clk 00:05:52]} {[%emt 00:00:09]} Nxf5
{[%clk 00:05:15]} {[%emt 00:00:02]} 40. Nxf6 {[%clk 00:05:55]} {[%emt
00:00:04]} Nd4+ {[%clk 00:05:13]} {[%emt 00:00:07]} 41. Kg4 {[%clk 00:05:55]}
{[%emt 00:00:04]} Nxe6 {[%clk 00:05:16]} {[%emt 00:00:03]} 42. Kxh4 {[%clk
00:06:00]} Kd8 {[%clk 00:04:54]} {[%emt 00:00:27]} 43. Kg4 {[%clk 00:06:03]}
{[%emt 00:00:02]} Ke7 {[%clk 00:04:56]} {[%emt 00:00:02]} 44. Kf5 {[%clk
00:06:02]} {[%emt 00:00:06]} a5 {[%clk 00:04:47]} {[%emt 00:00:15]} 45. h4
{[%clk 00:06:06]} {[%emt 00:00:01]} Kf7 {[%clk 00:04:22]} {[%emt 00:00:29]} 46.
Ne4 {[%clk 00:05:43]} {[%emt 00:00:29]} c5 {[%clk 00:04:18]} {[%emt 00:00:09]}
47. Ke5 {[%clk 00:05:34]} {[%emt 00:00:14]} c4 {[%clk 00:03:29]} {[%emt
00:00:55]} 48. bxc4 {[%clk 00:05:31]} {[%emt 00:00:08]} b4 {[%clk 00:03:24]}
{[%emt 00:00:10]} 49. Nd2 {[%clk 00:05:05]} {[%emt 00:00:30]} a4 {[%clk
00:03:20]} {[%emt 00:00:10]} 50. Nb1 {[%clk 00:05:02]} {[%emt 00:00:07]} b3
{[%clk 00:03:02]} {[%emt 00:00:24]} 51. axb3 {[%clk 00:05:05]} {[%emt
00:00:02]} axb3 {[%clk 00:03:06]} {[%emt 00:00:02]} 52. Kd5 {[%clk 00:05:01]}
{[%emt 00:00:08]} b2 {[%clk 00:02:49]} {[%emt 00:00:22]} 53. c5 {[%clk
00:04:59]} {[%emt 00:00:07]} Ke7 {[%clk 00:02:46]} {[%emt 00:00:08]} 54. Kc6
{[%clk 00:04:48]} {[%emt 00:00:15]} Kd8 {[%clk 00:02:46]} {[%emt 00:00:06]} 55.
Kd5 {[%clk 00:04:35]} {[%emt 00:00:17]} Kd7 {[%clk 00:02:39]} {[%emt 00:00:13]}
56. c6+ {[%clk 00:04:39]} {[%emt 00:00:02]} Ke7 {[%clk 00:02:42]} {[%emt
00:00:02]} 57. Ke5 {[%clk 00:04:17]} {[%emt 00:00:23]} Nd8 {[%clk 00:02:40]}
{[%emt 00:00:09]} 58. Kd5 {[%clk 00:04:10]} {[%emt 00:00:14]} Kf6 {[%clk
00:02:43]} {[%emt 00:00:02]} 59. Kc4 {[%clk 00:03:58]} {[%emt 00:00:13]} Nxc6
{[%clk 00:02:44]} {[%emt 00:00:08]} 60. Kc3 {[%clk 00:03:57]} {[%emt 00:00:04]}
Kg6 {[%clk 00:02:42]} {[%emt 00:00:09]} 61. Kxb2 {[%clk 00:04:01]} {[%emt
00:00:01]} Kh5 {[%clk 00:02:46]} 62. Nc3 {[%clk 00:04:04]} {[%emt 00:00:02]}
Nd4 {[%clk 00:02:44]} {[%emt 00:00:06]} 63. Nd5 {[%clk 00:03:55]} {[%emt
00:00:14]} c6 {[%clk 00:02:47]} {[%emt 00:00:03]} 64. Nf4+ {[%clk 00:03:48]}
{[%emt 00:00:12]} Kxh4 {[%clk 00:02:51]} {[%emt 00:00:02]} 65. Kc3 {[%clk
00:03:51]} {[%emt 00:00:02]} Nb5+ {[%clk 00:02:43]} {[%emt 00:00:14]} 66. Kc4
{[%clk 00:03:51]} {[%emt 00:00:03]} Kg4 {[%clk 00:02:47]} {[%emt 00:00:02]} 67.
Ne6 {[%clk 00:03:54]} {[%emt 00:00:02]} Kf5 {[%clk 00:02:43]} {[%emt 00:00:09]}
68. Nd4+ {[%clk 00:03:58]} {[%emt 00:00:01]} Nxd4 {[%clk 00:02:44]} {[%emt
00:00:04]} 69. Kxd4 {[%clk 00:04:02]} {[%emt 00:00:01]} Ke6 {[%clk 00:02:48]}
{[%emt 00:00:01]} 70. Kc5 {[%clk 00:04:04]} {[%emt 00:00:03]} Kd7 {[%clk
00:02:51]} {[%emt 00:00:02]} 71. Kd4 {[%clk 00:04:06]} {[%emt 00:00:02]} Kd6
{[%clk 00:02:55]} {[%emt 00:00:02]} 72. Kc4 {[%clk 00:04:10]} {[%emt 00:00:02]}
c5 {[%clk 00:02:53]} {[%emt 00:00:06]} 73. Kc3 {[%clk 00:04:12]} {[%emt
00:00:03]} Kc6 {[%clk 00:02:53]} {[%emt 00:00:05]} 74. Kc4 {[%clk 00:04:15]}
{[%emt 00:00:02]} Kb6 {[%clk 00:02:57]} {[%emt 00:00:01]} 75. Kb3 {[%clk
00:04:19]} {[%emt 00:00:01]} Ka5 {[%clk 00:03:00]} {[%emt 00:00:02]} 76. Kc4
{[%clk 00:04:23]} {[%emt 00:00:01]} Kb6 {[%clk 00:03:04]} {[%emt 00:00:01]} 77.
Kb3 {[%clk 00:04:27]} Kb5 {[%clk 00:03:08]} 78. Kb2 {[%clk 00:04:26]} {[%emt
00:00:06]} Kc4 {[%clk 00:03:11]} {[%emt 00:00:02]} 79. Kc2 {[%clk 00:04:30]}
Kd4 {[%clk 00:02:56]} {[%emt 00:00:20]} 80. Kb3 {[%clk 00:04:31]} {[%emt
00:00:04]} Kd3 {[%clk 00:02:58]} {[%emt 00:00:02]} 81. Kb2 {[%clk 00:04:33]}
{[%emt 00:00:03]} c4 {[%clk 00:02:58]} {[%emt 00:00:05]} 82. Kc1 {[%clk
00:04:37]} {[%emt 00:00:01]} Kc3 {[%clk 00:03:03]} {[%emt 00:00:01]} 83. Kd1
{[%clk 00:04:40]} {[%emt 00:00:02]} Kb2 {[%clk 00:03:06]} {[%emt 00:00:01]} 84.
Kd2 {[%clk 00:10:05]} {[%emt 00:00:11]} 0-1

[Event "Ruzomberok Closed 2020 - 3. turnaj"]
[Site "Ruzomberok, Slovakia"]
[Date "2020.09.05"]
[Round "2.2"]
[White "Gasper, Jaroslav"]
[Black "Hajtmansky, Milan"]
[Result "1-0"]
[TimeControl "10m + 5s"]
[WhiteElo "1721"]
[BlackElo "1590"]

1. e4 {[%clk 00:10:07]} {[%emt 00:00:03]} g6 {[%clk 00:10:09]} {[%emt
00:00:01]} 2. d4 {[%clk 00:10:11]} Bg7 {[%clk 00:10:12]} {[%emt 00:00:01]} 3.
f4 {[%clk 00:10:15]} {[%emt 00:00:02]} e6 {[%clk 00:10:15]} {[%emt 00:00:02]} 4.
Nf3 {[%clk 00:10:19]} {[%emt 00:00:01]} Ne7 {[%clk 00:10:14]} {[%emt 00:00:05]}
5. h4 {[%clk 00:10:21]} {[%emt 00:00:03]} Nbc6 {[%clk 00:10:16]} {[%emt
00:00:04]} 6. a3 {[%clk 00:10:22]} {[%emt 00:00:05]} d5 {[%clk 00:10:17]}
{[%emt 00:00:03]} 7. e5 {[%clk 00:10:27]} {[%emt 00:00:01]} Nf5 {[%clk
00:10:13]} {[%emt 00:00:08]} 8. g4 {[%clk 00:10:24]} {[%emt 00:00:07]} Nfe7
{[%clk 00:10:09]} {[%emt 00:00:09]} 9. b4 {[%clk 00:10:28]} {[%emt 00:00:02]}
a6 {[%clk 00:10:12]} {[%emt 00:00:02]} 10. b5 {[%clk 00:10:19]} {[%emt
00:00:14]} axb5 {[%clk 00:10:15]} {[%emt 00:00:02]} 11. Bxb5 {[%clk 00:10:24]}
Ra5 {[%clk 00:10:02]} {[%emt 00:00:18]} 12. Qd3 {[%clk 00:10:12]} {[%emt
00:00:16]} Bd7 {[%clk 00:10:03]} {[%emt 00:00:05]} 13. Bd2 {[%clk 00:10:11]}
{[%emt 00:00:06]} Ra8 {[%clk 00:10:05]} {[%emt 00:00:03]} 14. h5 {[%clk
00:10:14]} {[%emt 00:00:02]} Na5 {[%clk 00:09:44]} {[%emt 00:00:25]} 15. Bxa5
{[%clk 00:10:02]} {[%emt 00:00:17]} Rxa5 {[%clk 00:09:46]} {[%emt 00:00:03]} 16.
Nc3 {[%clk 00:09:18]} {[%emt 00:00:49]} Qa8 {[%clk 00:09:40]} {[%emt 00:00:11]}
17. Bxd7+ {[%clk 00:09:20]} {[%emt 00:00:03]} Kxd7 {[%clk 00:09:43]} {[%emt
00:00:02]} 18. Nb5 {[%clk 00:08:32]} {[%emt 00:00:53]} Qa6 {[%clk 00:09:38]}
{[%emt 00:00:10]} 19. Rb1 {[%clk 00:07:27]} {[%emt 00:01:10]} c6 {[%clk
00:09:37]} {[%emt 00:00:06]} 20. Nd6 {[%clk 00:07:27]} {[%emt 00:00:05]} Qxd3
{[%clk 00:09:38]} {[%emt 00:00:04]} 21. Rxb7+ {[%clk 00:06:57]} {[%emt
00:00:36]} Kd8 {[%clk 00:09:42]} {[%emt 00:00:01]} 22. cxd3 {[%clk 00:06:41]}
{[%emt 00:00:21]} Rxa3 {[%clk 00:09:42]} {[%emt 00:00:05]} 23. O-O {[%clk
00:06:20]} {[%emt 00:00:27]} Rxd3 {[%clk 00:09:39]} {[%emt 00:00:08]} 24. Nxf7+
{[%clk 00:06:20]} {[%emt 00:00:04]} Kc8 {[%clk 00:09:41]} {[%emt 00:00:02]} 25.
Rxe7 {[%clk 00:06:08]} {[%emt 00:00:17]} Ra3 {[%clk 00:09:16]} {[%emt
00:00:30]} 26. Nxh8 {[%clk 00:06:10]} {[%emt 00:00:04]} Bxh8 {[%clk 00:09:19]}
{[%emt 00:00:02]} 27. Re8+ {[%clk 00:06:13]} {[%emt 00:00:01]} Kd7 {[%clk
00:09:22]} {[%emt 00:00:02]} 28. Rxh8 {[%clk 00:06:17]} {[%emt 00:00:01]} Kc7
{[%clk 00:09:09]} {[%emt 00:00:18]} 29. Rxh7+ {[%clk 00:06:21]} {[%emt
00:00:02]} Kb6 {[%clk 00:09:13]} {[%emt 00:00:01]} 30. hxg6 {[%clk 00:06:24]}
{[%emt 00:00:02]} Ra8 {[%clk 00:09:08]} {[%emt 00:00:09]} 31. Rb1+ {[%clk
00:06:29]} {[%emt 00:00:02]} Ka6 {[%clk 00:09:04]} {[%emt 00:00:08]} 32. g7
{[%clk 00:06:32]} {[%emt 00:00:02]} Rg8 {[%clk 00:08:59]} {[%emt 00:00:10]} 33.
Rh8 {[%clk 00:06:36]} {[%emt 00:00:02]} Rxg7 {[%clk 00:08:56]} {[%emt
00:00:07]} 34. Ra8+ {[%clk 00:06:39]} {[%emt 00:00:03]} 1-0

[Event "Ruzomberok Closed 2020 - 3. turnaj"]
[Site "Ruzomberok, Slovakia"]
[Date "2020.09.05"]
[Round "2.3"]
[White "Gollner, Martin"]
[Black "Holly, Andrej"]
[Result "0-1"]
[TimeControl "10m + 5s"]
[WhiteElo "1123"]
[BlackElo "1714"]

1. e4 {[%clk 00:10:07]} {[%emt 00:00:02]} g6 {[%clk 00:10:08]} {[%emt
00:00:02]} 2. d4 {[%clk 00:10:09]} {[%emt 00:00:04]} Bg7 {[%clk 00:10:12]}
{[%emt 00:00:01]} 3. c4 {[%clk 00:10:02]} {[%emt 00:00:13]} d6 {[%emt
00:00:13]} 4. f4 {[%clk 00:10:00]} Nf6 {[%clk 00:09:55]} {[%emt 00:00:20]} 5.
Nc3 {[%clk 00:10:01]} {[%emt 00:00:03]} O-O {[%clk 00:09:58]} {[%emt 00:00:03]}
6. Nf3 {[%clk 00:10:01]} {[%emt 00:00:05]} c5 {[%clk 00:09:35]} {[%emt
00:00:28]} 7. d5 {[%clk 00:09:51]} {[%emt 00:00:15]} e6 {[%clk 00:09:38]}
{[%emt 00:00:02]} 8. Bd3 {[%clk 00:09:40]} {[%emt 00:00:17]} exd5 {[%clk
00:08:47]} {[%emt 00:00:56]} 9. cxd5 {[%clk 00:09:42]} {[%emt 00:00:03]} a6
{[%clk 00:08:33]} {[%emt 00:00:19]} 10. O-O {[%clk 00:09:37]} {[%emt 00:00:09]}
b5 {[%clk 00:08:18]} {[%emt 00:00:20]} 11. Be3 {[%clk 00:08:56]} {[%emt
00:00:47]} Ng4 {[%clk 00:07:53]} {[%emt 00:00:31]} 12. Bf2 {[%clk 00:07:16]}
{[%emt 00:01:45]} Nxf2 {[%clk 00:06:23]} {[%emt 00:01:35]} 13. Rxf2 {[%clk
00:07:06]} {[%emt 00:00:15]} Nd7 {[%clk 00:06:20]} {[%emt 00:00:08]} 14. Qc2
{[%clk 00:06:21]} {[%emt 00:00:51]} c4 {[%clk 00:06:09]} {[%emt 00:00:16]} 15.
Be2 {[%clk 00:06:19]} {[%emt 00:00:07]} Nc5 {[%clk 00:06:04]} {[%emt 00:00:10]}
16. e5 {[%clk 00:05:24]} {[%emt 00:01:00]} Bf5 {[%clk 00:05:26]} {[%emt
00:00:41]} 17. Qd2 {[%clk 00:05:08]} {[%emt 00:00:23]} b4 {[%clk 00:05:11]}
{[%emt 00:00:20]} 18. Nd1 {[%clk 00:03:59]} {[%emt 00:01:14]} c3 {[%clk
00:03:20]} {[%emt 00:01:57]} 19. Qd4 {[%clk 00:03:17]} {[%emt 00:00:47]} Qa5
{[%clk 00:02:23]} {[%emt 00:01:01]} 20. bxc3 {[%clk 00:03:03]} {[%emt
00:00:19]} bxc3 {[%clk 00:01:14]} {[%emt 00:01:14]} 21. Qxc3 {[%clk 00:02:57]}
{[%emt 00:00:11]} Qb6 {[%clk 00:01:01]} {[%emt 00:00:18]} 22. Qb2 {[%clk
00:02:16]} {[%emt 00:00:46]} Qa7 {[%clk 00:00:47]} {[%emt 00:00:18]} 23. Nd4
{[%clk 00:01:41]} {[%emt 00:00:40]} Ne4 {[%clk 00:00:36]} {[%emt 00:00:16]} 24.
Nc6 {[%clk 00:00:45]} {[%emt 00:01:02]} Qc7 {[%clk 00:00:16]} {[%emt 00:00:25]}
25. Rf1 {[%clk 00:00:37]} {[%emt 00:00:13]} dxe5 {[%clk 00:00:15]} {[%emt
00:00:06]} 26. fxe5 {[%clk 00:00:40]} {[%emt 00:00:02]} Rab8 {[%clk 00:00:10]}
{[%emt 00:00:10]} 27. Nxb8 {[%clk 00:00:35]} {[%emt 00:00:10]} Rxb8 {[%clk
00:00:14]} 28. Qc1 {[%clk 00:00:29]} {[%emt 00:00:11]} Qxe5 {[%clk 00:00:09]}
{[%emt 00:00:10]} 29. Rb1 {[%clk 00:00:09]} {[%emt 00:00:26]} Qd4+ {[%clk
00:00:13]} 30. Qe3 {[%clk 00:00:06]} {[%emt 00:00:13]} Rxb1 {[%clk 00:00:17]}
{[%emt 00:00:05]} 31. Qxd4 {[%clk 00:00:09]} {[%emt 00:00:03]} Bxd4+ {[%clk
00:00:21]} 32. Kh1 {[%clk 00:00:10]} {[%emt 00:00:04]} Nd2 {[%emt 00:00:25]} 33.
Rf4 {[%clk 00:00:09]} Bc5 {[%clk 00:00:09]} {[%emt 00:00:04]} 34. g3 {[%clk
00:00:06]} {[%emt 00:00:09]} Bc2 {[%clk 00:00:09]} {[%emt 00:00:05]} 0-1

[Event "Ruzomberok Closed 2020 - 3. turnaj"]
[Site "Ruzomberok, Slovakia"]
[Date "2020.09.05"]
[Round "2.4"]
[White "Demko, Ladislav"]
[Black "Jurgos, Samuel"]
[Result "0-1"]
[TimeControl "10m + 5s"]
[WhiteElo "1701"]
[BlackElo "1073"]

1. d4 {[%clk 00:09:57]} {[%emt 00:00:12]} d6 {[%clk 00:09:59]} {[%emt
00:00:12]} 2. c4 {[%clk 00:09:56]} {[%emt 00:00:05]} g6 {[%clk 00:10:01]}
{[%emt 00:00:03]} 3. Nc3 {[%clk 00:09:54]} {[%emt 00:00:07]} Bg7 {[%clk
00:10:04]} {[%emt 00:00:02]} 4. e4 {[%clk 00:09:48]} {[%emt 00:00:11]} c5
{[%clk 00:09:23]} {[%emt 00:00:47]} 5. dxc5 {[%clk 00:09:39]} {[%emt 00:00:15]}
dxc5 {[%clk 00:09:22]} {[%emt 00:00:06]} 6. Qxd8+ {[%clk 00:09:39]} {[%emt
00:00:03]} Kxd8 {[%clk 00:09:25]} {[%emt 00:00:03]} 7. Nf3 {[%clk 00:09:34]}
{[%emt 00:00:10]} Nc6 {[%clk 00:09:21]} {[%emt 00:00:10]} 8. Be3 {[%clk
00:09:34]} {[%emt 00:00:04]} b6 {[%clk 00:09:21]} {[%emt 00:00:05]} 9. O-O-O+
{[%clk 00:09:31]} {[%emt 00:00:08]} Kc7 {[%clk 00:09:24]} {[%emt 00:00:02]} 10.
Nb5+ {[%clk 00:09:02]} {[%emt 00:00:34]} Kb7 {[%clk 00:09:19]} {[%emt
00:00:11]} 11. Bf4 {[%clk 00:08:41]} {[%emt 00:00:25]} e5 {[%clk 00:09:05]}
{[%emt 00:00:18]} 12. Bg3 {[%clk 00:08:37]} {[%emt 00:00:09]} Bg4 {[%clk
00:08:57]} {[%emt 00:00:13]} 13. Rd7+ {[%clk 00:08:35]} {[%emt 00:00:06]} Bxd7
{[%clk 00:09:00]} {[%emt 00:00:03]} 14. Nd6+ {[%clk 00:08:22]} {[%emt
00:00:18]} Kc7 {[%clk 00:09:01]} {[%emt 00:00:05]} 15. Nxf7 {[%clk 00:08:23]}
{[%emt 00:00:03]} Nge7 {[%clk 00:08:59]} {[%emt 00:00:06]} 16. Nxh8 {[%clk
00:08:20]} {[%emt 00:00:08]} Rxh8 {[%clk 00:08:49]} {[%emt 00:00:16]} 17. Be2
{[%clk 00:08:13]} {[%emt 00:00:12]} Bg4 {[%clk 00:08:42]} {[%emt 00:00:12]} 18.
h3 {[%clk 00:07:47]} {[%emt 00:00:31]} Bxf3 {[%clk 00:08:45]} {[%emt 00:00:02]}
19. gxf3 {[%clk 00:07:44]} {[%emt 00:00:07]} Nd4 {[%clk 00:08:48]} {[%emt
00:00:03]} 20. Bd1 {[%clk 00:07:28]} {[%emt 00:00:21]} Rf8 {[%clk 00:08:30]}
{[%emt 00:00:23]} 21. Bh4 {[%clk 00:07:19]} {[%emt 00:00:14]} Nec6 {[%clk
00:08:29]} {[%emt 00:00:06]} 22. a3 {[%clk 00:06:31]} {[%emt 00:00:53]} Nxf3
{[%clk 00:08:31]} {[%emt 00:00:03]} 23. Bg3 {[%clk 00:06:29]} {[%emt 00:00:07]}
Bh6+ {[%clk 00:08:22]} {[%emt 00:00:13]} 24. Kc2 {[%clk 00:06:26]} {[%emt
00:00:08]} Ncd4+ {[%clk 00:08:24]} {[%emt 00:00:03]} 25. Kd3 {[%clk 00:06:17]}
{[%emt 00:00:14]} Nd2 {[%clk 00:07:58]} {[%emt 00:00:28]} 26. Bxe5+ {[%clk
00:06:06]} {[%emt 00:00:19]} Kc6 {[%clk 00:07:54]} {[%emt 00:00:09]} 27. Ba4+
{[%clk 00:05:54]} {[%emt 00:00:18]} b5 {[%clk 00:07:42]} {[%emt 00:00:18]} 28.
cxb5+ {[%clk 00:05:55]} {[%emt 00:00:03]} Nxb5 {[%clk 00:07:45]} {[%emt
00:00:02]} 29. f4 {[%clk 00:05:18]} {[%emt 00:00:42]} Nf3 {[%clk 00:07:23]}
{[%emt 00:00:24]} 30. Bxb5+ {[%clk 00:04:23]} {[%emt 00:01:02]} Kxb5 {[%clk
00:07:26]} {[%emt 00:00:02]} 31. b3 {[%clk 00:04:09]} {[%emt 00:00:19]} Nxe5+
{[%clk 00:07:28]} {[%emt 00:00:03]} 32. fxe5 {[%clk 00:04:09]} {[%emt
00:00:04]} Rf3+ {[%clk 00:07:29]} {[%emt 00:00:04]} 33. Kc2 {[%clk 00:04:02]}
{[%emt 00:00:12]} Re3 {[%clk 00:07:21]} {[%emt 00:00:12]} 34. Rd1 {[%clk
00:03:42]} {[%emt 00:00:26]} Rxe4 {[%clk 00:07:10]} {[%emt 00:00:16]} 35. Rd5
{[%clk 00:03:39]} {[%emt 00:00:07]} Re2+ {[%clk 00:07:05]} {[%emt 00:00:10]} 36.
Kc3 {[%clk 00:03:29]} {[%emt 00:00:15]} Bg7 {[%clk 00:06:51]} {[%emt 00:00:19]}
37. a4+ {[%clk 00:03:28]} {[%emt 00:00:07]} Kc6 {[%clk 00:06:48]} {[%emt
00:00:08]} 38. Rd6+ {[%clk 00:03:27]} {[%emt 00:00:06]} Kc7 {[%clk 00:06:49]}
{[%emt 00:00:03]} 39. Ra6 {[%clk 00:03:18]} {[%emt 00:00:14]} Bxe5+ {[%clk
00:06:48]} {[%emt 00:00:06]} 40. Kd3 {[%clk 00:03:11]} {[%emt 00:00:12]} Rb2
{[%clk 00:06:36]} {[%emt 00:00:16]} 41. Rxa7+ {[%clk 00:03:08]} {[%emt
00:00:09]} Kb6 {[%clk 00:06:40]} {[%emt 00:00:02]} 42. Rxh7 {[%emt 00:00:08]}
Rxb3+ {[%emt 00:00:04]} 43. Kc4 {[%clk 00:02:41]} {[%emt 00:00:19]} Ka5 {[%clk
00:05:35]} {[%emt 00:01:10]} 44. Kxc5 {[%clk 00:02:33]} {[%emt 00:00:13]} Rc3
{[%clk 00:05:05]} {[%emt 00:00:35]} 45. Kd5 {[%clk 00:02:34]} {[%emt 00:00:04]}
Bf4 {[%clk 00:05:00]} {[%emt 00:00:09]} 46. h4 {[%clk 00:01:39]} {[%emt
00:01:01]} Kxa4 {[%clk 00:04:49]} {[%emt 00:00:16]} 47. Ke4 {[%clk 00:01:31]}
{[%emt 00:00:12]} Bg3 {[%clk 00:04:33]} {[%emt 00:00:19]} 48. h5 {[%clk
00:01:19]} {[%emt 00:00:19]} g5 {[%clk 00:04:13]} {[%emt 00:00:25]} 49. Rg7
{[%clk 00:01:14]} {[%emt 00:00:11]} Bf4 {[%clk 00:04:14]} {[%emt 00:00:04]} 50.
h6 {[%clk 00:01:15]} {[%emt 00:00:03]} Re3 {[%clk 00:04:16]} {[%emt 00:00:04]}
51. Kf5 {[%clk 00:01:17]} {[%emt 00:00:03]} Rh3 {[%clk 00:04:12]} {[%emt
00:00:09]} 52. h7 {[%clk 00:01:12]} {[%emt 00:00:10]} Bc1 {[%clk 00:03:56]}
{[%emt 00:00:20]} 53. Kg4 {[%clk 00:00:56]} {[%emt 00:00:21]} Rh4 {[%clk
00:03:58]} {[%emt 00:00:03]} 54. Kf5 {[%clk 00:00:57]} {[%emt 00:00:04]} Kb3
{[%clk 00:02:56]} {[%emt 00:01:08]} 55. Rc7 {[%emt 00:01:06]} Bd2 {[%clk
00:02:19]} 56. Kg6 {[%clk 00:00:23]} {[%emt 00:00:19]} g4 {[%clk 00:02:18]}
{[%emt 00:00:06]} 57. Rd7 {[%clk 00:00:00]} {[%emt 00:00:23]} Kc3 {[%clk
00:02:18]} {[%emt 00:00:28]} 58. Rc7+ {[%clk 00:00:00]} {[%emt 00:00:05]} Kd3
{[%clk 00:02:18]} {[%emt 00:00:03]} 59. Re7 {[%emt 00:00:23]} g3 {[%emt
00:00:13]} 0-1